[Event "*** Titled Tuesday Blitz"]
[Site "Chess.com"]
[Date "2020.04.21"]
[Round "8"]
[White "talaicito"]
[Black "Trankuilizer"]
[Result "0-1"]
[WhiteElo "2295"]
[BlackElo "2513"]
[TimeControl "180+1"]
[EndTime "11:39:57 PDT"]
[Termination "Trankuilizer won by checkmate"]

1. d4 {[%clk 0:03:00.9]} 1... d5 {[%clk 0:02:59.3]} 2. Nc3 {[%clk 0:03:00.9]}
2... e6 {[%clk 0:02:58.7]} 3. Bf4 {[%clk 0:03:00.4]} 3... Nf6 {[%clk 0:02:57.5]}
4. e3 {[%clk 0:02:59.6]} 4... a6 {[%clk 0:02:56.9]} 5. Nf3 {[%clk 0:02:54.3]}
5... c5 {[%clk 0:02:56.3]} 6. a3 {[%clk 0:02:37.9]} 6... Nc6 {[%clk 0:02:49.4]}
7. Ne5 {[%clk 0:02:36.7]} 7... Bd6 {[%clk 0:02:46.3]} 8. Nxc6 {[%clk 0:02:29.1]}
8... bxc6 {[%clk 0:02:45.8]} 9. dxc5 {[%clk 0:02:28]} 9... Bxc5 {[%clk
0:02:33.4]} 10. Bd3 {[%clk 0:02:26.6]} 10... O-O {[%clk 0:02:19.8]} 11. O-O
{[%clk 0:02:25.8]} 11... Bd6 {[%clk 0:02:20.3]} 12. Bxd6 {[%clk 0:02:10]} 12...
Qxd6 {[%clk 0:02:20.1]} 13. Na4 {[%clk 0:02:10.6]} 13... c5 {[%clk 0:02:19.2]}
14. c4 {[%clk 0:02:02.6]} 14... Bd7 {[%clk 0:02:06.3]} 15. Nc3 {[%clk
0:01:56.7]} 15... Rab8 {[%clk 0:01:59.8]} 16. Qe2 {[%clk 0:01:49.7]} 16... d4
{[%clk 0:01:54.9]} 17. exd4 {[%clk 0:01:47.8]} 17... cxd4 {[%clk 0:01:55.2]} 18.
Nd1 {[%clk 0:01:23.4]} 18... a5 {[%clk 0:01:51.2]} 19. f4 {[%clk 0:01:17.7]}
19... Rb3 {[%clk 0:01:30.3]} 20. Rc1 {[%clk 0:00:58.4]} 20... Bc6 {[%clk
0:01:19.3]} 21. g3 {[%clk 0:00:48]} 21... Rfb8 {[%clk 0:01:14.9]} 22. Rc2 {[%clk
0:00:46.8]} 22... Rxd3 {[%clk 0:01:00.2]} 23. Qxd3 {[%clk 0:00:45.4]} 23... Be4
{[%clk 0:01:00.7]} 24. Qd2 {[%clk 0:00:45.5]} 24... Bxc2 {[%clk 0:01:00.4]} 25.
Qxc2 {[%clk 0:00:46.2]} 25... d3 {[%clk 0:01:01]} 26. Qd2 {[%clk 0:00:41.7]}
26... Qd4+ {[%clk 0:00:58.6]} 27. Kg2 {[%clk 0:00:38.8]} 27... a4 {[%clk
0:00:40.5]} 28. Rf3 {[%clk 0:00:38.7]} 28... Qxc4 {[%clk 0:00:18.3]} 29. Qxd3
{[%clk 0:00:37.3]} 29... Qxd3 {[%clk 0:00:18.5]} 30. Rxd3 {[%clk 0:00:37.5]}
30... Nd5 {[%clk 0:00:17.1]} 31. f5 {[%clk 0:00:35.9]} 31... Kf8 {[%clk
0:00:16.5]} 32. fxe6 {[%clk 0:00:36.1]} 32... fxe6 {[%clk 0:00:16.5]} 33. Kf3
{[%clk 0:00:36.6]} 33... Ke7 {[%clk 0:00:16.4]} 34. Ke4 {[%clk 0:00:36.7]} 34...
Kd6 {[%clk 0:00:15.7]} 35. Nc3 {[%clk 0:00:33.8]} 35... Rxb2 {[%clk 0:00:14.7]}
36. Nxd5 {[%clk 0:00:33.8]} 36... exd5+ {[%clk 0:00:15.1]} 37. Rxd5+ {[%clk
0:00:33.7]} 37... Ke7 {[%clk 0:00:15.6]} 38. Re5+ {[%clk 0:00:33.6]} 38... Kf6
{[%clk 0:00:15.5]} 39. Ra5 {[%clk 0:00:33.4]} 39... Rxh2 {[%clk 0:00:13.6]} 40.
Rxa4 {[%clk 0:00:33.4]} 40... h5 {[%clk 0:00:13.6]} 41. Kf3 {[%clk 0:00:33.1]}
41... Ra2 {[%clk 0:00:08.1]} 42. Ra6+ {[%clk 0:00:33.3]} 42... Kg5 {[%clk
0:00:08.1]} 43. Ra5+ {[%clk 0:00:33.4]} 43... Kh6 {[%clk 0:00:08]} 44. Ra6+
{[%clk 0:00:33.2]} 44... g6 {[%clk 0:00:08.4]} 45. Kf4 {[%clk 0:00:33.3]} 45...
Rf2+ {[%clk 0:00:07.5]} 46. Ke3 {[%clk 0:00:33.2]} 46... Ra2 {[%clk 0:00:08.4]}
47. Kf3 {[%clk 0:00:33.4]} 47... Rb2 {[%clk 0:00:07.5]} 48. a4 {[%clk
0:00:33.3]} 48... Rb3+ {[%clk 0:00:08.4]} 49. Kg2 {[%clk 0:00:32.9]} 49... Ra3
{[%clk 0:00:08.4]} 50. a5 {[%clk 0:00:30.4]} 50... Kg5 {[%clk 0:00:08.2]} 51.
Kh2 {[%clk 0:00:28.9]} 51... Kf5 {[%clk 0:00:07.9]} 52. Ra8 {[%clk 0:00:27.9]}
52... Kg4 {[%clk 0:00:07.7]} 53. Ra6 {[%clk 0:00:26.6]} 53... g5 {[%clk
0:00:07.5]} 54. Rb6 {[%clk 0:00:23.2]} 54... Ra2+ {[%clk 0:00:07.1]} 55. Kh1
{[%clk 0:00:22.3]} 55... Kxg3 {[%clk 0:00:07.5]} 56. Rb3+ {[%clk 0:00:21.6]}
56... Kh4 {[%clk 0:00:07.7]} 57. Rb4+ {[%clk 0:00:09.4]} 57... g4 {[%clk
0:00:07.7]} 58. Rb5 {[%clk 0:00:09.3]} 58... Kg3 {[%clk 0:00:07.1]} 59. Rb3+
{[%clk 0:00:08.8]} 59... Kh4 {[%clk 0:00:07.5]} 60. Rb5 {[%clk 0:00:08.7]} 60...
Kh3 {[%clk 0:00:07.6]} 61. Rxh5+ {[%clk 0:00:07.9]} 61... Kg3 {[%clk 0:00:08]}
62. Rb5 {[%clk 0:00:07.6]} 62... Ra1+ {[%clk 0:00:08]} 63. Rb1 {[%clk
0:00:05.8]} 63... Rxb1# {[%clk 0:00:07.1]} 0-1

[Event "*** Titled Tuesday Blitz"]
[Site "Chess.com"]
[Date "2020.04.21"]
[Round "8"]
[White "Egorov_Pavel"]
[Black "Colombiano07"]
[Result "0-1"]
[WhiteElo "2341"]
[BlackElo "2228"]
[TimeControl "180+1"]
[EndTime "11:39:57 PDT"]
[Termination "Colombiano07 won on time"]

1. d4 {[%clk 0:03:00.9]} 1... d5 {[%clk 0:02:57.1]} 2. c4 {[%clk 0:03:00.8]}
2... Bf5 {[%clk 0:02:57.3]} 3. cxd5 {[%clk 0:03:00.5]} 3... Bxb1 {[%clk
0:02:56.7]} 4. Rxb1 {[%clk 0:03:01.4]} 4... Qxd5 {[%clk 0:02:56.4]} 5. e3 {[%clk
0:03:01.8]} 5... Nc6 {[%clk 0:02:57.1]} 6. Ne2 {[%clk 0:03:00.3]} 6... e5 {[%clk
0:02:55.9]} 7. Nc3 {[%clk 0:02:59.6]} 7... Bb4 {[%clk 0:02:55.5]} 8. Bd2 {[%clk
0:02:55.5]} 8... Bxc3 {[%clk 0:02:55.2]} 9. Bxc3 {[%clk 0:02:56.4]} 9... O-O-O
{[%clk 0:02:51.8]} 10. Qa4 {[%clk 0:02:44.7]} 10... exd4 {[%clk 0:02:49.6]} 11.
Rd1 {[%clk 0:02:39.1]} 11... Nf6 {[%clk 0:02:42.8]} 12. Bxd4 {[%clk 0:02:35.6]}
12... Nxd4 {[%clk 0:02:42.1]} 13. Rxd4 {[%clk 0:02:30.4]} 13... Qc5 {[%clk
0:02:41]} 14. Qc4 {[%clk 0:01:44]} 14... Qa5+ {[%clk 0:02:32.6]} 15. b4 {[%clk
0:01:36.4]} 15... Qa3 {[%clk 0:01:55.8]} 16. Be2 {[%clk 0:01:35.8]} 16... Rxd4
{[%clk 0:01:53.7]} 17. exd4 {[%clk 0:01:36]} 17... Ne4 {[%clk 0:01:40.1]} 18.
O-O {[%clk 0:01:30.8]} 18... Nd2 {[%clk 0:01:35]} 19. Qc1 {[%clk 0:00:57.9]}
19... Qxc1 {[%clk 0:00:59.7]} 20. Rxc1 {[%clk 0:00:58.8]} 20... Rd8 {[%clk
0:00:59.8]} 21. Rd1 {[%clk 0:00:18.3]} 21... Rxd4 {[%clk 0:00:58.7]} 22. f3
{[%clk 0:00:14]} 22... Rd6 {[%clk 0:00:47]} 23. Kf2 {[%clk 0:00:13]} 23... b5
{[%clk 0:00:42.8]} 24. Rc1 {[%clk 0:00:11.2]} 24... Nc4 {[%clk 0:00:39.3]} 25.
Bxc4 {[%clk 0:00:10.7]} 25... bxc4 {[%clk 0:00:40.2]} 26. Rxc4 {[%clk
0:00:11.6]} 26... Rd2+ {[%clk 0:00:40.3]} 27. Kg3 {[%clk 0:00:12.5]} 27... Rxa2
{[%clk 0:00:40.1]} 28. Rf4 {[%clk 0:00:09.5]} 28... f6 {[%clk 0:00:40.2]} 29.
Rh4 {[%clk 0:00:05.7]} 29... h6 {[%clk 0:00:39.6]} 30. Rg4 {[%clk 0:00:06]}
30... g5 {[%clk 0:00:39.7]} 31. Re4 {[%clk 0:00:06.4]} 31... Kd7 {[%clk
0:00:38.9]} 32. h4 {[%clk 0:00:06.3]} 32... Rd2 {[%clk 0:00:36.3]} 33. h5 {[%clk
0:00:06.4]} 33... Rd5 {[%clk 0:00:31.8]} 34. Rc4 {[%clk 0:00:05.5]} 34... a5
{[%clk 0:00:30.6]} 35. bxa5 {[%clk 0:00:05.1]} 35... Rxa5 {[%clk 0:00:31.5]} 36.
Rb4 {[%clk 0:00:04.6]} 36... Ra8 {[%clk 0:00:30]} 37. Kg4 {[%clk 0:00:03.4]}
37... Ra5 {[%clk 0:00:29.2]} 38. Rd4+ {[%clk 0:00:03]} 38... Ke7 {[%clk
0:00:28.4]} 39. Rc4 {[%clk 0:00:03.2]} 39... f5+ {[%clk 0:00:27.6]} 40. Kg3
{[%clk 0:00:03.3]} 40... Kd6 {[%clk 0:00:28]} 41. Rd4+ {[%clk 0:00:03.2]} 41...
Rd5 {[%clk 0:00:28]} 42. Rc4 {[%clk 0:00:03.6]} 42... c5 {[%clk 0:00:28]} 43.
Ra4 {[%clk 0:00:04.1]} 43... Ke5 {[%clk 0:00:27]} 44. Ra6 {[%clk 0:00:05]} 44...
Rd6 {[%clk 0:00:27.4]} 45. Ra5 {[%clk 0:00:05.1]} 45... Kd4 {[%clk 0:00:27.3]}
46. Kf2 {[%clk 0:00:04.1]} 46... Re6 {[%clk 0:00:25.6]} 47. Ra4+ {[%clk
0:00:03.6]} 47... c4 {[%clk 0:00:25.6]} 48. g4 {[%clk 0:00:02.7]} 48... fxg4
{[%clk 0:00:25.5]} 49. fxg4 {[%clk 0:00:03.2]} 49... Kd3 {[%clk 0:00:25]} 50.
Kf3 {[%clk 0:00:03.3]} 50... Rf6+ {[%clk 0:00:24.9]} 51. Kg3 {[%clk 0:00:03.2]}
51... c3 {[%clk 0:00:25.5]} 52. Ra8 {[%clk 0:00:03.1]} 52... Rc6 {[%clk
0:00:24.2]} 53. Rd8+ {[%clk 0:00:04]} 53... Ke4 {[%clk 0:00:23.5]} 54. Re8+
{[%clk 0:00:04]} 54... Kd5 {[%clk 0:00:23.7]} 55. Re1 {[%clk 0:00:04.2]} 55...
c2 {[%clk 0:00:24.1]} 56. Rc1 {[%clk 0:00:05.1]} 56... Ke4 {[%clk 0:00:24.3]}
57. Kf2 {[%clk 0:00:05.2]} 57... Kd3 {[%clk 0:00:24.7]} 58. Ke1 {[%clk
0:00:05.3]} 58... Re6+ {[%clk 0:00:25]} 59. Kf2 {[%clk 0:00:05.6]} 59... Kd2
{[%clk 0:00:25.9]} 60. Ra1 {[%clk 0:00:04.9]} 60... c1=Q {[%clk 0:00:26]} 61.
Ra2+ {[%clk 0:00:05.3]} 61... Qc2 {[%clk 0:00:25.4]} 62. Rxc2+ {[%clk
0:00:04.1]} 62... Kxc2 {[%clk 0:00:26.3]} 63. Kf3 {[%clk 0:00:04.7]} 63... Kd3
{[%clk 0:00:26.7]} 64. Kf2 {[%clk 0:00:04.6]} 64... Ke4 {[%clk 0:00:26.8]} 65.
Kg3 {[%clk 0:00:02.1]} 65... Ke3 {[%clk 0:00:26.9]} 0-1

[Event "*** Titled Tuesday Blitz"]
[Site "Chess.com"]
[Date "2020.04.21"]
[Round "8"]
[White "Dynamikus"]
[Black "jsdbv18"]
[Result "1-0"]
[WhiteElo "2744"]
[BlackElo "2571"]
[TimeControl "180+1"]
[EndTime "11:39:58 PDT"]
[Termination "Dynamikus won by resignation"]

1. e4 {[%clk 0:03:00.9]} 1... c5 {[%clk 0:03:00.4]} 2. Nf3 {[%clk 0:03:00.6]}
2... d6 {[%clk 0:03:01]} 3. d4 {[%clk 0:03:01.1]} 3... cxd4 {[%clk 0:03:01.9]}
4. Nxd4 {[%clk 0:03:01.8]} 4... Nf6 {[%clk 0:03:02]} 5. Nc3 {[%clk 0:03:01.9]}
5... a6 {[%clk 0:03:02.2]} 6. Be3 {[%clk 0:03:01.6]} 6... e5 {[%clk 0:03:01.1]}
7. Nb3 {[%clk 0:03:01.3]} 7... Be6 {[%clk 0:03:01.1]} 8. h3 {[%clk 0:03:01.7]}
8... h5 {[%clk 0:03:01.6]} 9. f4 {[%clk 0:03:01.9]} 9... exf4 {[%clk 0:02:58.7]}
10. Bxf4 {[%clk 0:03:02.8]} 10... Nc6 {[%clk 0:02:58.8]} 11. Qe2 {[%clk
0:03:02.7]} 11... Nd7 {[%clk 0:02:59]} 12. O-O-O {[%clk 0:03:02.6]} 12... Nce5
{[%clk 0:02:59.2]} 13. Kb1 {[%clk 0:03:02.1]} 13... Rc8 {[%clk 0:02:58.3]} 14.
Qe3 {[%clk 0:02:48.8]} 14... Be7 {[%clk 0:02:53.7]} 15. Rg1 {[%clk 0:02:33]}
15... Qb6 {[%clk 0:02:46.8]} 16. Nd4 {[%clk 0:02:19.6]} 16... Ng6 {[%clk
0:02:39]} 17. Bg3 {[%clk 0:02:14.2]} 17... h4 {[%clk 0:02:37.6]} 18. Bf2 {[%clk
0:02:11.8]} 18... Qa5 {[%clk 0:02:23.9]} 19. Nb3 {[%clk 0:01:59.4]} 19... Qc7
{[%clk 0:02:18.8]} 20. Nd4 {[%clk 0:01:53.6]} 20... Nde5 {[%clk 0:02:14.9]} 21.
Nf5 {[%clk 0:01:50.9]} 21... Bf8 {[%clk 0:02:07.4]} 22. Be2 {[%clk 0:01:38.8]}
22... b5 {[%clk 0:02:06.1]} 23. a3 {[%clk 0:01:35.8]} 23... Qc5 {[%clk
0:01:58.7]} 24. Rgf1 {[%clk 0:01:18.6]} 24... Qxe3 {[%clk 0:01:55.3]} 25. Bxe3
{[%clk 0:01:19.5]} 25... Rc6 {[%clk 0:01:52.2]} 26. Nd5 {[%clk 0:01:15.1]} 26...
Bxd5 {[%clk 0:01:51.2]} 27. exd5 {[%clk 0:01:14.5]} 27... Rc8 {[%clk 0:01:50.2]}
28. a4 {[%clk 0:01:13]} 28... Nc4 {[%clk 0:01:36.6]} 29. Bxc4 {[%clk 0:01:11.5]}
29... Rxc4 {[%clk 0:01:37.5]} 30. axb5 {[%clk 0:01:10]} 30... axb5 {[%clk
0:01:38.4]} 31. Bd4 {[%clk 0:01:08.4]} 31... f6 {[%clk 0:01:36.4]} 32. b3 {[%clk
0:01:05.7]} 32... Rc8 {[%clk 0:01:35.7]} 33. Kb2 {[%clk 0:01:04.8]} 33... Ne5
{[%clk 0:01:33.6]} 34. Bxe5 {[%clk 0:00:58.8]} 34... dxe5 {[%clk 0:01:28.7]} 35.
d6 {[%clk 0:00:59.4]} 35... Kd7 {[%clk 0:01:27.8]} 36. Ra1 {[%clk 0:00:58.2]}
36... g6 {[%clk 0:01:26]} 37. Ra7+ {[%clk 0:00:57.4]} 37... Ke6 {[%clk
0:01:26.3]} 38. Ng7+ {[%clk 0:00:42.8]} 38... Kxd6 {[%clk 0:01:23]} 39. Rxf6+
{[%clk 0:00:42.4]} 39... Kd5 {[%clk 0:01:19.9]} 40. Rd7+ {[%clk 0:00:37.3]}
40... Ke4 {[%clk 0:01:19.5]} 41. Ne6 {[%clk 0:00:36.9]} 41... Bb4 {[%clk
0:01:14]} 42. Rd3 {[%clk 0:00:27.8]} 42... Rh5 {[%clk 0:01:12.2]} 43. Rff3
{[%clk 0:00:17]} 43... Bc5 {[%clk 0:01:03.5]} 44. c3 {[%clk 0:00:16.1]} 44...
Bg1 {[%clk 0:01:01.9]} 45. b4 {[%clk 0:00:13.8]} 45... Rf5 {[%clk 0:01:00.6]}
46. Rd1 {[%clk 0:00:09.2]} 46... Bb6 {[%clk 0:00:55.8]} 47. Re1+ {[%clk
0:00:07.9]} 47... Kd5 {[%clk 0:00:56.1]} 48. Rxf5 {[%clk 0:00:03.8]} 48... gxf5
{[%clk 0:00:57]} 49. Ng5 {[%clk 0:00:03.9]} 49... e4 {[%clk 0:00:56.9]} 50. Rd1+
{[%clk 0:00:03.9]} 50... Ke5 {[%clk 0:00:56.9]} 51. Nf7+ {[%clk 0:00:04.6]}
51... Kf6 {[%clk 0:00:55.8]} 52. Rd6+ {[%clk 0:00:05]} 52... Kxf7 {[%clk
0:00:55.4]} 53. Rxb6 {[%clk 0:00:05.9]} 53... f4 {[%clk 0:00:53.9]} 54. Kc2
{[%clk 0:00:06.2]} 54... Rd8 {[%clk 0:00:53.5]} 55. Rxb5 {[%clk 0:00:06.3]}
55... e3 {[%clk 0:00:50.8]} 56. Rf5+ {[%clk 0:00:06.4]} 56... Ke6 {[%clk
0:00:51.3]} 57. Rxf4 {[%clk 0:00:07.3]} 57... Ke5 {[%clk 0:00:51.3]} 58. Rf7
{[%clk 0:00:07.2]} 58... Rd2+ {[%clk 0:00:46]} 59. Kc1 {[%clk 0:00:06.9]} 59...
Rxg2 {[%clk 0:00:46]} 60. Re7+ {[%clk 0:00:05.3]} 60... Kf4 {[%clk 0:00:46.2]}
61. b5 {[%clk 0:00:05.1]} 61... Rh2 {[%clk 0:00:46.3]} 62. b6 {[%clk 0:00:05.3]}
62... Rh1+ {[%clk 0:00:46.9]} 63. Kc2 {[%clk 0:00:05.3]} 63... Rh2+ {[%clk
0:00:47.6]} 64. Kc1 {[%clk 0:00:05.2]} 64... Rh1+ {[%clk 0:00:47.8]} 65. Kc2
{[%clk 0:00:05.5]} 65... Rh2+ {[%clk 0:00:48.4]} 66. Kd3 {[%clk 0:00:06]} 66...
Rd2+ {[%clk 0:00:48.3]} 67. Kc4 {[%clk 0:00:05.2]} 67... Rb2 {[%clk 0:00:48.5]}
68. Kc5 {[%clk 0:00:05.3]} 68... e2 {[%clk 0:00:46.1]} 69. c4 {[%clk 0:00:04.5]}
69... Kf3 {[%clk 0:00:45.9]} 70. Kc6 {[%clk 0:00:04.8]} 70... Rb4 {[%clk
0:00:43.6]} 71. c5 {[%clk 0:00:04.9]} 71... Kg3 {[%clk 0:00:44]} 72. b7 {[%clk
0:00:04.9]} 72... e1=Q {[%clk 0:00:40.8]} 73. Rxe1 {[%clk 0:00:04.7]} 73... Kxh3
{[%clk 0:00:40.9]} 74. Kc7 {[%clk 0:00:04.1]} 74... Rb5 {[%clk 0:00:41.1]} 75.
b8=Q {[%clk 0:00:04.1]} 75... Rxb8 {[%clk 0:00:41.7]} 76. Kxb8 {[%clk
0:00:04.3]} 76... Kg2 {[%clk 0:00:42.6]} 77. c6 {[%clk 0:00:04.6]} 77... h3
{[%clk 0:00:43.5]} 78. c7 {[%clk 0:00:05.1]} 78... h2 {[%clk 0:00:44.2]} 79.
c8=Q {[%clk 0:00:04.9]} 79... Kf2 {[%clk 0:00:45.1]} 80. Qc2+ {[%clk 0:00:04.3]}
80... Kxe1 {[%clk 0:00:46]} 81. Qxh2 {[%clk 0:00:04.8]} 1-0

[Event "*** Titled Tuesday Blitz"]
[Site "Chess.com"]
[Date "2020.04.21"]
[Round "8"]
[White "lestri"]
[Black "Rainmond"]
[Result "1/2-1/2"]
[WhiteElo "2566"]
[BlackElo "2729"]
[TimeControl "180+1"]
[EndTime "11:39:58 PDT"]
[Termination "Game drawn - insufficient material"]

1. c4 {[%clk 0:03:00.9]} 1... e5 {[%clk 0:02:57.4]} 2. Nc3 {[%clk 0:02:59]} 2...
Bb4 {[%clk 0:02:57.8]} 3. Qc2 {[%clk 0:02:58]} 3... Nf6 {[%clk 0:02:55.8]} 4.
Nf3 {[%clk 0:02:57.8]} 4... d6 {[%clk 0:02:51.9]} 5. d4 {[%clk 0:02:52]} 5...
Nbd7 {[%clk 0:02:32.8]} 6. a3 {[%clk 0:02:48.7]} 6... Bxc3+ {[%clk 0:02:30.5]}
7. Qxc3 {[%clk 0:02:48]} 7... Qe7 {[%clk 0:02:31.2]} 8. Bg5 {[%clk 0:02:45.2]}
8... e4 {[%clk 0:02:25.4]} 9. Nd2 {[%clk 0:02:43.8]} 9... h6 {[%clk 0:02:25.4]}
10. Bh4 {[%clk 0:02:43.2]} 10... O-O {[%clk 0:02:25.5]} 11. e3 {[%clk
0:02:42.5]} 11... g5 {[%clk 0:02:23.8]} 12. Bg3 {[%clk 0:02:41.7]} 12... Nh5
{[%clk 0:02:24]} 13. Be2 {[%clk 0:02:41.2]} 13... Nxg3 {[%clk 0:02:23.9]} 14.
hxg3 {[%clk 0:02:41.1]} 14... Kg7 {[%clk 0:02:23]} 15. d5+ {[%clk 0:02:23.3]}
15... f6 {[%clk 0:02:06.2]} 16. f4 {[%clk 0:02:21.1]} 16... exf3 {[%clk
0:02:02.8]} 17. gxf3 {[%clk 0:02:20.5]} 17... c6 {[%clk 0:01:59.9]} 18. Kf2
{[%clk 0:02:09.1]} 18... Ne5 {[%clk 0:01:59.1]} 19. Rh2 {[%clk 0:01:56.9]} 19...
cxd5 {[%clk 0:01:58.5]} 20. cxd5 {[%clk 0:01:56.2]} 20... Bf5 {[%clk 0:01:58.7]}
21. Rah1 {[%clk 0:01:48.3]} 21... Rac8 {[%clk 0:01:55.9]} 22. Qd4 {[%clk
0:01:47.4]} 22... Rh8 {[%clk 0:01:54.4]} 23. g4 {[%clk 0:01:35.3]} 23... Bd7
{[%clk 0:01:48]} 24. Bd3 {[%clk 0:01:28.5]} 24... b5 {[%clk 0:01:38]} 25. Bb1
{[%clk 0:01:25.7]} 25... a5 {[%clk 0:01:37.1]} 26. Qe4 {[%clk 0:01:20.7]} 26...
Be8 {[%clk 0:01:30.6]} 27. Qd4 {[%clk 0:01:11.8]} 27... Bd7 {[%clk 0:01:26.6]}
28. Kg3 {[%clk 0:01:10.6]} 28... Nc4 {[%clk 0:01:26.2]} 29. Ne4 {[%clk
0:01:07.4]} 29... Qe5+ {[%clk 0:01:19.1]} 30. Qxe5 {[%clk 0:01:06.3]} 30... dxe5
{[%clk 0:01:19.3]} 31. Bd3 {[%clk 0:01:04.6]} 31... Nxe3 {[%clk 0:01:17]} 32. d6
{[%clk 0:00:57.3]} 32... f5 {[%clk 0:01:15.1]} 33. gxf5 {[%clk 0:00:53.9]} 33...
Nxf5+ {[%clk 0:01:14.8]} 34. Kf2 {[%clk 0:00:54.1]} 34... Rhf8 {[%clk
0:01:14.6]} 35. Ke1 {[%clk 0:00:48.1]} 35... Rc1+ {[%clk 0:01:11.4]} 36. Kd2
{[%clk 0:00:47.8]} 36... Rxh1 {[%clk 0:01:12.3]} 37. Rxh1 {[%clk 0:00:47.9]}
37... Rc8 {[%clk 0:01:11.4]} 38. Nc3 {[%clk 0:00:45.1]} 38... Nd4 {[%clk
0:01:10.5]} 39. Ke3 {[%clk 0:00:41.6]} 39... Rc6 {[%clk 0:01:06.8]} 40. Nxb5
{[%clk 0:00:38.5]} 40... Nxb5 {[%clk 0:01:05.5]} 41. Bxb5 {[%clk 0:00:37.9]}
41... Rxd6 {[%clk 0:01:05.4]} 42. Bxd7 {[%clk 0:00:37.2]} 42... Rxd7 {[%clk
0:01:05.4]} 43. b4 {[%clk 0:00:37.1]} 43... axb4 {[%clk 0:01:05.2]} 44. axb4
{[%clk 0:00:36.3]} 44... Rb7 {[%clk 0:01:05.4]} 45. Rb1 {[%clk 0:00:35.5]} 45...
h5 {[%clk 0:01:05.6]} 46. b5 {[%clk 0:00:34.6]} 46... Kf6 {[%clk 0:01:04.6]} 47.
Ke4 {[%clk 0:00:34.6]} 47... h4 {[%clk 0:01:04.5]} 48. Kd5 {[%clk 0:00:31.3]}
48... Kf5 {[%clk 0:01:04]} 49. Kc6 {[%clk 0:00:29.9]} 49... Rb8 {[%clk
0:01:03.7]} 50. Kc7 {[%clk 0:00:29.7]} 50... Rh8 {[%clk 0:01:02.3]} 51. b6
{[%clk 0:00:27.2]} 51... Kf4 {[%clk 0:01:00.6]} 52. Kd6 {[%clk 0:00:27.2]} 52...
h3 {[%clk 0:00:50.9]} 53. b7 {[%clk 0:00:25.9]} 53... Kxf3 {[%clk 0:00:48.3]}
54. Kxe5 {[%clk 0:00:22.9]} 54... h2 {[%clk 0:00:42.6]} 55. Kf5 {[%clk
0:00:20.8]} 55... g4 {[%clk 0:00:37.8]} 56. Rb3+ {[%clk 0:00:20.1]} 56... Kg2
{[%clk 0:00:37.5]} 57. Rb2+ {[%clk 0:00:18.9]} 57... Kh3 {[%clk 0:00:36.6]} 58.
b8=Q {[%clk 0:00:12.6]} 58... Rxb8 {[%clk 0:00:30.6]} 59. Rxb8 {[%clk 0:00:12]}
59... g3 {[%clk 0:00:30.5]} 60. Rh8+ {[%clk 0:00:11.7]} 60... Kg2 {[%clk
0:00:30.2]} 61. Kg4 {[%clk 0:00:10.6]} 61... h1=Q {[%clk 0:00:29.8]} 62. Rxh1
{[%clk 0:00:09.2]} 62... Kxh1 {[%clk 0:00:30.7]} 63. Kxg3 {[%clk 0:00:07.7]}
1/2-1/2

[Event "*** Titled Tuesday Blitz"]
[Site "Chess.com"]
[Date "2020.04.21"]
[Round "8"]
[White "adriangschnitzer"]
[Black "chidori_boruto"]
[Result "0-1"]
[WhiteElo "2432"]
[BlackElo "2627"]
[TimeControl "180+1"]
[EndTime "11:39:58 PDT"]
[Termination "chidori_boruto won on time"]

1. e4 {[%clk 0:02:58.2]} 1... c6 {[%clk 0:02:59.5]} 2. d4 {[%clk 0:02:58]} 2...
d6 {[%clk 0:02:59.6]} 3. Nf3 {[%clk 0:02:52.3]} 3... Nf6 {[%clk 0:02:58.1]} 4.
Nc3 {[%clk 0:02:47.3]} 4... Bg4 {[%clk 0:02:57.6]} 5. Be2 {[%clk 0:02:43.4]}
5... Nbd7 {[%clk 0:02:53.7]} 6. h3 {[%clk 0:02:38.6]} 6... Bh5 {[%clk
0:02:49.4]} 7. Be3 {[%clk 0:02:36.2]} 7... e5 {[%clk 0:02:47]} 8. Qd2 {[%clk
0:02:32.9]} 8... Be7 {[%clk 0:02:46.3]} 9. O-O-O {[%clk 0:02:26.6]} 9... Bg6
{[%clk 0:02:42.2]} 10. Bd3 {[%clk 0:02:20.8]} 10... Qc7 {[%clk 0:02:39.1]} 11.
dxe5 {[%clk 0:02:17.2]} 11... dxe5 {[%clk 0:02:38.4]} 12. g4 {[%clk 0:02:15.3]}
12... O-O {[%clk 0:02:33.9]} 13. g5 {[%clk 0:02:05.5]} 13... Nh5 {[%clk
0:02:30.7]} 14. Nh4 {[%clk 0:02:04.7]} 14... Nc5 {[%clk 0:02:28.2]} 15. Nf5
{[%clk 0:01:46.1]} 15... Rfd8 {[%clk 0:02:24.2]} 16. Qe2 {[%clk 0:01:36.7]}
16... Bf8 {[%clk 0:02:18.8]} 17. h4 {[%clk 0:01:31.2]} 17... b5 {[%clk
0:02:16.3]} 18. Ng3 {[%clk 0:01:03.2]} 18... Nf4 {[%clk 0:02:07.8]} 19. Bxf4
{[%clk 0:00:55.9]} 19... exf4 {[%clk 0:02:08.7]} 20. Nf5 {[%clk 0:00:56.3]}
20... b4 {[%clk 0:02:01.1]} 21. Nb1 {[%clk 0:00:53.1]} 21... Qe5 {[%clk
0:01:47.8]} 22. Rhe1 {[%clk 0:00:42.6]} 22... Re8 {[%clk 0:01:37.9]} 23. h5
{[%clk 0:00:36.5]} 23... Bxf5 {[%clk 0:01:37.5]} 24. exf5 {[%clk 0:00:35.1]}
24... Nxd3+ {[%clk 0:01:37.9]} 25. Qxd3 {[%clk 0:00:34.6]} 25... Qxe1 {[%clk
0:01:37.9]} 26. Rxe1 {[%clk 0:00:33.8]} 26... Rxe1+ {[%clk 0:01:38.8]} 27. Kd2
{[%clk 0:00:34]} 27... Rxb1 {[%clk 0:01:39.1]} 28. g6 {[%clk 0:00:34]} 28...
hxg6 {[%clk 0:01:38.3]} 29. hxg6 {[%clk 0:00:31.9]} 29... Be7 {[%clk 0:00:52.7]}
30. Qb3 {[%clk 0:00:27]} 30... Rd8+ {[%clk 0:00:50.4]} 31. Ke2 {[%clk
0:00:26.3]} 31... Rd5 {[%clk 0:00:50.8]} 32. Qh3 {[%clk 0:00:22.8]} 32... Bf6
{[%clk 0:00:38.4]} 33. Qh7+ {[%clk 0:00:21.7]} 33... Kf8 {[%clk 0:00:38.5]} 34.
Qh8+ {[%clk 0:00:22.2]} 34... Ke7 {[%clk 0:00:38.7]} 35. Qg8 {[%clk 0:00:21.1]}
35... fxg6 {[%clk 0:00:37.5]} 36. fxg6 {[%clk 0:00:22]} 36... Rxb2 {[%clk
0:00:33.8]} 37. Qf7+ {[%clk 0:00:20.3]} 37... Kd6 {[%clk 0:00:33.3]} 38. Kf3
{[%clk 0:00:14.7]} 38... Rxa2 {[%clk 0:00:30.6]} 39. Qf8+ {[%clk 0:00:12.4]}
39... Kd7 {[%clk 0:00:29]} 40. Qxb4 {[%clk 0:00:10]} 40... Rxc2 {[%clk
0:00:25.6]} 41. Qxf4 {[%clk 0:00:09.1]} 41... Rd3+ {[%clk 0:00:20.8]} 42. Kg2
{[%clk 0:00:06.9]} 42... Rdd2 {[%clk 0:00:21.1]} 43. Qf5+ {[%clk 0:00:05.8]}
43... Kc7 {[%clk 0:00:20.6]} 44. Qa5+ {[%clk 0:00:05.5]} 44... Kb7 {[%clk
0:00:20.5]} 45. Qb4+ {[%clk 0:00:05]} 45... Kc8 {[%clk 0:00:19.5]} 46. Qf8+
{[%clk 0:00:04.5]} 46... Kc7 {[%clk 0:00:19.7]} 47. Qf7+ {[%clk 0:00:03.5]}
47... Kd6 {[%clk 0:00:19.8]} 48. Qf8+ {[%clk 0:00:03]} 48... Ke6 {[%clk
0:00:19.5]} 49. Qe8+ {[%clk 0:00:02.7]} 49... Kf5 {[%clk 0:00:19.2]} 50. Qc8+
{[%clk 0:00:03]} 50... Kxg6 {[%clk 0:00:18.9]} 51. Qe8+ {[%clk 0:00:03.3]} 51...
Kf5 {[%clk 0:00:17.3]} 52. Qc8+ {[%clk 0:00:02.8]} 52... Ke5 {[%clk 0:00:17.2]}
53. Qe8+ {[%clk 0:00:02.6]} 53... Kd6 {[%clk 0:00:17.4]} 0-1